[Event "The Elitserien 2024/25: round 1 - 3"]
[Site "Scandic Infra City, Kanalvagen 10, Upplands Vasby, Sweden"]
[Date "2024.10.05"]
[Round "2.36"]
[White "Eriksson, Johan"]
[Black "Seo, Jung Min"]
[Result "0-1"]
[TimeControl "90 minutes for 40 moves + 30 minutes for the rest of the game + 30 seconds per move from move one."]
[WhiteTitle "IM"]
[BlackTitle "IM"]
[WhiteFideId "1702564"]
[BlackFideId "1734687"]
[WhiteElo "2389"]
[BlackElo "2505"]

1. d4 {[%clk 01:30:57]} {[%emt 00:00:03]} Nf6 {[%clk 01:30:58]} {[%emt
00:00:02]} 2. c4 {[%clk 01:31:21]} {[%emt 00:00:06]} e6 {[%clk 01:31:19]}
{[%emt 00:00:10]} 3. Nc3 {[%clk 01:31:13]} {[%emt 00:00:37]} Bb4 {[%clk
01:31:43]} {[%emt 00:00:06]} 4. Qc2 {[%clk 01:31:27]} {[%emt 00:00:16]} b6
{[%clk 01:26:38]} {[%emt 00:05:37]} 5. a3 {[%clk 01:27:36]} {[%emt 00:04:20]}
Bxc3+ {[%clk 01:27:02]} {[%emt 00:00:06]} 6. Qxc3 {[%clk 01:28:01]} {[%emt
00:00:05]} Bb7 {[%clk 01:26:16]} {[%emt 00:01:16]} 7. Nf3 {[%clk 01:19:58]}
{[%emt 00:08:33]} O-O {[%clk 01:25:52]} {[%emt 00:00:53]} 8. Bg5 {[%clk
01:19:09]} {[%emt 00:01:19]} d6 {[%clk 01:25:14]} {[%emt 00:01:08]} 9. Nd2
{[%clk 01:16:56]} {[%emt 00:02:43]} c5 {[%clk 01:16:54]} {[%emt 00:08:50]} 10.
dxc5 {[%clk 01:15:10]} {[%emt 00:02:17]} bxc5 {[%clk 01:16:28]} {[%emt
00:00:57]} 11. e3 {[%clk 01:03:51]} {[%emt 00:11:49]} Nbd7 {[%clk 01:14:17]}
{[%emt 00:02:41]} 12. f3 {[%clk 00:59:17]} {[%emt 00:05:04]} a5 {[%clk
01:14:18]} {[%emt 00:00:28]} 13. Bd3 {[%clk 00:57:14]} {[%emt 00:02:34]} Qb6
{[%clk 01:13:38]} {[%emt 00:01:09]} 14. O-O {[%clk 00:53:57]} {[%emt 00:03:48]}
Bc6 {[%clk 01:03:35]} {[%emt 00:10:32]} 15. Rfe1 {[%clk 00:50:27]} {[%emt
00:04:00]} Rab8 {[%clk 01:03:33]} {[%emt 00:00:32]} 16. Rab1 {[%clk 00:50:31]}
{[%emt 00:00:26]} Rfe8 {[%clk 01:02:07]} {[%emt 00:01:56]} 17. Kh1 {[%clk
00:48:40]} {[%emt 00:02:22]} h6 {[%clk 00:49:20]} {[%emt 00:13:17]} 18. Bh4
{[%clk 00:48:53]} {[%emt 00:00:15]} a4 {[%clk 00:45:07]} {[%emt 00:04:45]} 19.
Bc2 {[%clk 00:47:09]} {[%emt 00:02:13]} d5 {[%clk 00:44:31]} {[%emt 00:01:07]}
20. Bf2 {[%clk 00:41:02]} {[%emt 00:06:35]} Qa7 {[%clk 00:40:28]} {[%emt
00:04:35]} 21. h3 {[%clk 00:39:51]} {[%emt 00:01:41]} Rbd8 {[%clk 00:40:38]}
{[%emt 00:00:19]} 22. Rbd1 {[%clk 00:38:11]} {[%emt 00:02:11]} Qb6 {[%clk
00:40:19]} {[%emt 00:00:48]} 23. Rb1 {[%clk 00:33:18]} {[%emt 00:05:23]} Qa7
{[%clk 00:39:59]} {[%emt 00:00:48]} 24. Red1 {[%clk 00:33:02]} {[%emt
00:00:47]} Rb8 {[%clk 00:39:52]} {[%emt 00:00:38]} 25. Kg1 {[%clk 00:32:38]}
{[%emt 00:00:54]} Red8 {[%clk 00:38:03]} {[%emt 00:02:19]} 26. Nf1 {[%clk
00:30:29]} {[%emt 00:02:38]} Qa6 {[%clk 00:36:36]} {[%emt 00:01:58]} 27. cxd5
{[%clk 00:26:54]} {[%emt 00:04:05]} Nxd5 {[%clk 00:35:55]} {[%emt 00:01:11]} 28.
Qd2 {[%clk 00:25:02]} {[%emt 00:02:21]} N5f6 {[%clk 00:27:58]} {[%emt
00:08:29]} 29. Ng3 {[%clk 00:24:04]} {[%emt 00:01:28]} Bd5 {[%clk 00:27:42]}
{[%emt 00:00:47]} 30. Qc3 {[%clk 00:18:50]} {[%emt 00:05:44]} Bb3 {[%clk
00:26:31]} {[%emt 00:01:41]} 31. e4 {[%clk 00:18:19]} {[%emt 00:01:00]} Rdc8
{[%clk 00:24:42]} {[%emt 00:02:18]} 32. Rd2 {[%clk 00:14:23]} {[%emt 00:04:26]}
Bxc2 {[%clk 00:24:49]} {[%emt 00:00:25]} 33. Qxc2 {[%clk 00:14:33]} {[%emt
00:00:20]} Ne5 {[%clk 00:22:29]} {[%emt 00:02:50]} 34. Qc3 {[%clk 00:12:51]}
{[%emt 00:02:10]} Nc4 {[%clk 00:22:24]} {[%emt 00:00:34]} 35. Rc2 {[%clk
00:12:55]} {[%emt 00:00:27]} Na5 {[%clk 00:22:16]} {[%emt 00:00:40]} 36. Ne2
{[%clk 00:09:18]} {[%emt 00:04:06]} Rb3 {[%clk 00:22:03]} {[%emt 00:00:43]} 37.
Qe1 {[%clk 00:09:14]} {[%emt 00:00:33]} Nc4 {[%clk 00:20:24]} {[%emt 00:02:10]}
38. Nc3 {[%clk 00:04:06]} {[%emt 00:05:38]} Ne5 {[%clk 00:19:31]} {[%emt
00:01:23]} 39. Qf1 {[%clk 00:02:40]} {[%emt 00:01:56]} c4 {[%clk 00:16:16]}
{[%emt 00:03:46]} 40. Bd4 {[%clk 00:01:44]} {[%emt 00:01:25]} Nfd7 {[%clk
00:07:13]} {[%emt 00:09:34]} 41. Na2 {[%clk 00:27:28]} {[%emt 00:04:45]} Qd6
{[%clk 00:35:08]} {[%emt 00:02:34]} 42. Bc3 {[%clk 00:26:35]} {[%emt 00:01:24]}
Nd3 {[%clk 00:31:56]} {[%emt 00:03:42]} 43. Nc1 {[%clk 00:23:08]} {[%emt
00:03:58]} Nxc1 {[%clk 00:22:51]} {[%emt 00:09:36]} 44. Rbxc1 {[%clk 00:23:03]}
{[%emt 00:00:34]} Ne5 {[%clk 00:23:12]} {[%emt 00:00:08]} 45. Bxe5 {[%clk
00:19:27]} {[%emt 00:04:07]} Qxe5 {[%clk 00:22:53]} {[%emt 00:00:49]} 46. Rxc4
{[%clk 00:19:42]} {[%emt 00:00:14]} Rxc4 {[%clk 00:23:06]} {[%emt 00:00:18]} 47.
Rxc4 {[%clk 00:19:11]} {[%emt 00:01:01]} Rxb2 {[%clk 00:17:00]} {[%emt
00:06:36]} 48. Rxa4 {[%clk 00:17:40]} {[%emt 00:02:00]} Qc5+ {[%clk 00:17:18]}
{[%emt 00:00:11]} 49. Kh2 {[%clk 00:14:25]} {[%emt 00:03:45]} Rf2 {[%clk
00:16:13]} {[%emt 00:01:35]} 50. Qg1 {[%clk 00:12:20]} {[%emt 00:02:36]} Qe3
{[%clk 00:09:12]} {[%emt 00:07:31]} 51. Rb4 {[%clk 00:07:27]} {[%emt 00:05:23]}
Qxf3 {[%clk 00:08:29]} {[%emt 00:01:13]} 52. e5 {[%clk 00:06:55]} {[%emt
00:01:01]} Qe2 {[%clk 00:00:53]} {[%emt 00:08:06]} 53. Re4 {[%clk 00:02:00]}
{[%emt 00:05:25]} Qxe4 {[%clk 00:01:06]} {[%emt 00:00:18]} 54. Qxf2 {[%clk
00:02:26]} {[%emt 00:00:04]} Qxe5+ {[%clk 00:01:33]} {[%emt 00:00:04]} 55. g3
{[%clk 00:02:45]} {[%emt 00:00:10]} Qa5 {[%clk 00:01:37]} {[%emt 00:00:25]} 56.
Qe3 {[%clk 00:02:11]} {[%emt 00:01:06]} Qb5 {[%clk 00:01:19]} {[%emt 00:00:47]}
57. h4 {[%clk 00:01:49]} {[%emt 00:00:53]} h5 {[%clk 00:01:32]} {[%emt
00:00:16]} 58. Qd2 {[%clk 00:01:14]} {[%emt 00:01:02]} e5 {[%clk 00:00:49]}
{[%emt 00:01:17]} 59. Qc2 {[%clk 00:01:20]} {[%emt 00:00:22]} g6 {[%clk
00:01:07]} {[%emt 00:00:14]} 60. a4 {[%clk 00:01:39]} {[%emt 00:00:10]} Qa5
{[%clk 00:00:50]} {[%emt 00:00:46]} 61. Qe4 {[%clk 00:00:45]} {[%emt 00:01:25]}
Kg7 {[%clk 00:01:08]} {[%emt 00:00:12]} 62. Kh3 {[%clk 00:00:53]} {[%emt
00:00:21]} Qc5 {[%clk 00:01:14]} {[%emt 00:00:23]} 63. Kg2 {[%clk 00:01:13]}
{[%emt 00:00:11]} Kf6 {[%clk 00:01:14]} {[%emt 00:00:30]} 64. Qa8 {[%clk
00:01:22]} {[%emt 00:00:20]} Ke6 {[%clk 00:00:52]} {[%emt 00:00:51]} 65. Qe8+
{[%clk 00:01:19]} {[%emt 00:00:34]} Qe7 {[%clk 00:00:38]} {[%emt 00:00:43]} 66.
Qc6+ {[%clk 00:01:31]} {[%emt 00:00:18]} Qd6 {[%clk 00:01:00]} {[%emt
00:00:09]} 67. Qe8+ {[%clk 00:01:41]} {[%emt 00:00:20]} Kf6 {[%clk 00:01:14]}
{[%emt 00:00:14]} 68. Qa8 {[%clk 00:01:27]} {[%emt 00:00:44]} Qd2+ {[%clk
00:00:51]} {[%emt 00:00:53]} 69. Kh3 {[%clk 00:01:36]} {[%emt 00:00:19]} Qd7+
{[%clk 00:01:19]} {[%emt 00:00:05]} 70. Kg2 {[%clk 00:01:57]} {[%emt 00:00:10]}
Ke6 {[%clk 00:01:22]} {[%emt 00:00:28]} 71. Kh2 {[%clk 00:01:53]} {[%emt
00:00:32]} Qd2+ {[%clk 00:01:00]} {[%emt 00:00:54]} 72. Kh3 {[%clk 00:02:08]}
{[%emt 00:00:15]} Qd5 {[%clk 00:01:05]} {[%emt 00:00:25]} 73. Qe8+ {[%clk
00:02:02]} {[%emt 00:00:37]} Kf5 {[%clk 00:00:51]} {[%emt 00:00:43]} 74. Kh2
{[%clk 00:01:20]} {[%emt 00:01:13]} Kf6 {[%clk 00:00:33]} {[%emt 00:00:48]} 75.
Kg1 {[%clk 00:01:14]} {[%emt 00:00:35]} Qd1+ {[%clk 00:00:33]} {[%emt
00:00:29]} 76. Kh2 {[%clk 00:01:17]} {[%emt 00:00:27]} Qd2+ {[%clk 00:00:43]}
{[%emt 00:00:20]} 77. Kh3 {[%clk 00:01:20]} {[%emt 00:00:20]} Qd5 {[%clk
00:01:05]} {[%emt 00:00:14]} 78. Kh2 {[%clk 00:01:34]} {[%emt 00:00:18]} e4
{[%clk 00:01:28]} {[%emt 00:00:07]} 79. Qh8+ {[%clk 00:01:13]} {[%emt
00:00:51]} Ke7 {[%clk 00:01:49]} {[%emt 00:00:08]} 80. Qc3 {[%clk 00:01:33]}
{[%emt 00:00:11]} Qa2+ {[%clk 00:00:37]} {[%emt 00:01:42]} 81. Kh1 {[%clk
00:01:36]} {[%emt 00:00:27]} Qxa4 {[%clk 00:00:41]} {[%emt 00:00:26]} 82. Qe5+
{[%clk 00:01:48]} {[%emt 00:00:17]} Kd8 {[%clk 00:00:59]} {[%emt 00:00:10]} 83.
Qd6+ {[%clk 00:01:21]} {[%emt 00:01:00]} Qd7 {[%clk 00:01:13]} {[%emt
00:00:16]} 84. Qb8+ {[%clk 00:01:08]} {[%emt 00:00:42]} Ke7 {[%clk 00:00:42]}
{[%emt 00:01:02]} 85. Qb4+ {[%clk 00:01:01]} {[%emt 00:00:37]} Kf6 {[%clk
00:01:07]} {[%emt 00:00:05]} 86. Kh2 {[%clk 00:00:49]} {[%emt 00:00:42]} Qe7
{[%clk 00:00:51]} {[%emt 00:00:42]} 87. Qc3+ {[%clk 00:00:58]} {[%emt
00:00:24]} Qe5 {[%clk 00:01:18]} {[%emt 00:00:04]} 88. Qe3 {[%clk 00:01:23]}
{[%emt 00:00:06]} Kg7 {[%clk 00:01:44]} {[%emt 00:00:04]} 89. Kg1 {[%clk
00:01:43]} {[%emt 00:00:11]} Qa1+ {[%clk 00:02:02]} {[%emt 00:00:10]} 90. Kh2
{[%clk 00:02:06]} {[%emt 00:00:08]} Qa2+ {[%clk 00:02:26]} {[%emt 00:00:05]} 91.
Kh3 {[%clk 00:02:27]} {[%emt 00:00:09]} Qc4 {[%clk 00:02:40]} {[%emt 00:00:16]}
92. Kh2 {[%clk 00:02:23]} {[%emt 00:00:33]} Qc2+ {[%clk 00:02:35]} {[%emt
00:00:36]} 93. Kh3 {[%clk 00:02:43]} {[%emt 00:00:10]} Qd3 {[%clk 00:02:59]}
{[%emt 00:00:06]} 94. Qf4 {[%clk 00:02:59]} {[%emt 00:00:14]} Qf3 {[%clk
00:02:52]} {[%emt 00:00:36]} 95. Qe5+ {[%clk 00:03:12]} {[%emt 00:00:18]} Kh7
{[%clk 00:03:16]} {[%emt 00:00:07]} 0-1

[Event "The Elitserien 2024/25: round 1 - 3"]
[Site "Scandic Infra City, Kanalvagen 10, Upplands Vasby, Sweden"]
[Date "2024.10.05"]
[Round "2.37"]
[White "Trost, Edvin"]
[Black "Henriksson, Johan"]
[Result "1-0"]
[TimeControl "90 minutes for 40 moves + 30 minutes for the rest of the game + 30 seconds per move from move one."]
[WhiteTitle "IM"]
[BlackTitle "FM"]
[WhiteFideId "1729519"]
[BlackFideId "1703560"]
[WhiteElo "2433"]
[BlackElo "2321"]

1. e4 {[%clk 01:29:17]} {[%emt 00:01:37]} c6 {[%clk 01:30:59]} {[%emt
00:00:09]} 2. Nf3 {[%clk 01:29:55]} {[%emt 00:00:21]} d5 {[%clk 01:31:44]}
{[%emt 00:00:14]} 3. d3 {[%clk 01:30:17]} {[%emt 00:00:07]} dxe4 {[%clk
01:29:50]} {[%emt 00:02:24]} 4. dxe4 {[%clk 01:30:25]} {[%emt 00:00:22]} Qxd1+
{[%clk 01:29:19]} {[%emt 00:01:02]} 5. Kxd1 {[%clk 01:30:46]} {[%emt 00:00:08]}
Bg4 {[%clk 01:29:22]} {[%emt 00:00:27]} 6. Be2 {[%clk 01:31:10]} {[%emt
00:00:06]} Nd7 {[%clk 01:27:58]} {[%emt 00:01:53]} 7. Ne1 {[%clk 01:31:29]}
{[%emt 00:00:11]} Bxe2+ {[%clk 01:26:21]} {[%emt 00:02:08]} 8. Kxe2 {[%clk
01:31:24]} {[%emt 00:00:33]} e5 {[%clk 01:24:44]} {[%emt 00:02:07]} 9. Nd3
{[%clk 01:26:47]} {[%emt 00:05:06]} Bd6 {[%clk 01:18:19]} {[%emt 00:06:56]} 10.
a4 {[%clk 01:20:33]} {[%emt 00:06:44]} Nc5 {[%clk 01:15:23]} {[%emt 00:03:26]}
11. Nxc5 {[%clk 01:18:08]} {[%emt 00:02:54]} Bxc5 {[%clk 01:15:20]} {[%emt
00:00:34]} 12. Nd2 {[%clk 01:16:05]} {[%emt 00:02:32]} Nf6 {[%clk 01:06:14]}
{[%emt 00:09:37]} 13. f3 {[%clk 01:03:26]} {[%emt 00:13:08]} Nd7 {[%clk
01:05:17]} {[%emt 00:01:28]} 14. Nb3 {[%clk 00:55:10]} {[%emt 00:08:45]} Ke7
{[%clk 01:02:22]} {[%emt 00:03:26]} 15. Rd1 {[%clk 00:46:05]} {[%emt 00:09:34]}
Bb6 {[%clk 01:01:31]} {[%emt 00:01:22]} 16. a5 {[%clk 00:41:40]} {[%emt
00:04:55]} Bc7 {[%clk 01:01:40]} {[%emt 00:00:20]} 17. Be3 {[%clk 00:40:30]}
{[%emt 00:01:39]} b6 {[%clk 01:00:52]} {[%emt 00:01:22]} 18. Ra4 {[%clk
00:36:38]} {[%emt 00:04:20]} b5 {[%clk 00:43:37]} {[%emt 00:17:45]} 19. Raa1
{[%clk 00:36:18]} {[%emt 00:00:50]} Rhd8 {[%clk 00:38:32]} {[%emt 00:05:34]} 20.
Rd3 {[%clk 00:34:27]} {[%emt 00:02:21]} Nf8 {[%clk 00:34:03]} {[%emt 00:05:00]}
21. Rc3 {[%clk 00:33:13]} {[%emt 00:01:44]} Bd6 {[%clk 00:32:51]} {[%emt
00:01:42]} 22. Rxc6 {[%clk 00:32:53]} {[%emt 00:00:49]} Rdc8 {[%clk 00:33:17]}
{[%emt 00:00:05]} 23. Rxc8 {[%clk 00:32:07]} {[%emt 00:01:17]} Rxc8 {[%clk
00:33:43]} {[%emt 00:00:04]} 24. Rc1 {[%clk 00:18:07]} {[%emt 00:14:30]} a6
{[%clk 00:33:59]} {[%emt 00:00:13]} 25. c4 {[%clk 00:18:24]} {[%emt 00:00:13]}
bxc4 {[%clk 00:29:09]} {[%emt 00:05:19]} 26. Nd2 {[%clk 00:18:49]} {[%emt
00:00:05]} Rb8 {[%clk 00:24:56]} {[%emt 00:04:43]} 27. Nxc4 {[%clk 00:18:37]}
{[%emt 00:00:42]} Rb5 {[%clk 00:25:02]} {[%emt 00:00:24]} 28. Rd1 {[%clk
00:09:08]} {[%emt 00:10:00]} Bb4 {[%clk 00:14:56]} {[%emt 00:10:35]} 29. Rd5
{[%clk 00:08:57]} {[%emt 00:00:41]} Rxd5 {[%clk 00:10:01]} {[%emt 00:05:26]} 30.
exd5 {[%clk 00:09:25]} {[%emt 00:00:01]} Nd7 {[%clk 00:10:05]} {[%emt
00:00:26]} 31. Bd2 {[%clk 00:08:32]} {[%emt 00:01:22]} Bd6 {[%clk 00:07:59]}
{[%emt 00:02:37]} 32. Kd3 {[%clk 00:07:12]} {[%emt 00:01:49]} Nc5+ {[%clk
00:05:16]} {[%emt 00:03:14]} 33. Kc3 {[%clk 00:06:55]} {[%emt 00:00:45]} Nb7
{[%clk 00:04:25]} {[%emt 00:01:23]} 34. Be3 {[%clk 00:05:45]} {[%emt 00:01:38]}
f6 {[%clk 00:03:25]} {[%emt 00:01:32]} 35. b4 {[%clk 00:06:00]} {[%emt
00:00:15]} Kd7 {[%clk 00:03:34]} {[%emt 00:00:21]} 36. b5 {[%clk 00:04:40]}
{[%emt 00:01:51]} Nxa5 {[%clk 00:01:34]} {[%emt 00:02:31]} 37. bxa6 {[%clk
00:01:44]} {[%emt 00:03:25]} Nxc4 {[%clk 00:01:59]} {[%emt 00:00:05]} 38. Kxc4
{[%clk 00:01:54]} {[%emt 00:00:20]} Kc7 {[%clk 00:02:22]} {[%emt 00:00:07]} 39.
Bc5 {[%clk 00:02:16]} {[%emt 00:00:08]} 1-0

[Event "The Elitserien 2024/25: round 1 - 3"]
[Site "Scandic Infra City, Kanalvagen 10, Upplands Vasby, Sweden"]
[Date "2024.10.05"]
[Round "2.38"]
[White "Aronsson, Marten"]
[Black "Barkhagen, Jonas"]
[Result "1/2-1/2"]
[TimeControl "90 minutes for 40 moves + 30 minutes for the rest of the game + 30 seconds per move from move one."]
[WhiteTitle "FM"]
[BlackTitle "IM"]
[WhiteFideId "1724223"]
[BlackFideId "1700855"]
[WhiteElo "2310"]
[BlackElo "2413"]

1. d4 {[%clk 01:30:54]} {[%emt 00:00:05]} d5 {[%clk 01:29:05]} {[%emt
00:01:55]} 2. Nf3 {[%clk 01:31:02]} {[%emt 00:00:23]} Nf6 {[%clk 01:29:17]}
{[%emt 00:00:17]} 3. c4 {[%clk 01:31:12]} {[%emt 00:00:20]} c6 {[%clk
01:29:41]} {[%emt 00:00:06]} 4. Nc3 {[%clk 01:31:02]} {[%emt 00:00:41]} e6
{[%clk 01:28:55]} {[%emt 00:01:14]} 5. Bg5 {[%clk 01:28:26]} {[%emt 00:03:08]}
h6 {[%clk 01:27:45]} {[%emt 00:01:39]} 6. Bxf6 {[%clk 01:26:32]} {[%emt
00:02:25]} Qxf6 {[%clk 01:28:08]} {[%emt 00:00:06]} 7. Qb3 {[%clk 01:24:58]}
{[%emt 00:02:04]} Nd7 {[%clk 01:27:09]} {[%emt 00:01:29]} 8. e3 {[%clk
01:21:56]} {[%emt 00:03:32]} g6 {[%clk 01:23:45]} {[%emt 00:03:53]} 9. Bd3
{[%clk 01:21:25]} {[%emt 00:01:02]} Bg7 {[%clk 01:24:07]} {[%emt 00:00:09]} 10.
Qa3 {[%clk 01:16:37]} {[%emt 00:05:19]} Bf8 {[%clk 01:22:57]} {[%emt 00:01:39]}
11. Qb3 {[%clk 01:17:00]} {[%emt 00:00:06]} Qe7 {[%clk 01:21:45]} {[%emt
00:01:42]} 12. O-O {[%clk 01:13:11]} {[%emt 00:04:19]} Bg7 {[%clk 01:21:40]}
{[%emt 00:00:35]} 13. cxd5 {[%clk 01:05:16]} {[%emt 00:08:26]} exd5 {[%clk
01:21:22]} {[%emt 00:00:47]} 14. e4 {[%clk 01:05:32]} {[%emt 00:00:14]} dxe4
{[%clk 01:19:39]} {[%emt 00:02:12]} 15. Rfe1 {[%clk 01:03:17]} {[%emt
00:02:46]} O-O {[%clk 01:19:15]} {[%emt 00:00:52]} 16. Nxe4 {[%clk 01:01:38]}
{[%emt 00:02:10]} Nb6 {[%clk 01:07:27]} {[%emt 00:12:17]} 17. Nc5 {[%clk
00:51:50]} {[%emt 00:10:19]} Qd6 {[%clk 01:06:24]} {[%emt 00:01:32]} 18. Rad1
{[%clk 00:52:05]} {[%emt 00:00:16]} Rb8 {[%clk 00:56:50]} {[%emt 00:10:03]} 19.
h3 {[%clk 00:49:12]} {[%emt 00:03:23]} Rd8 {[%clk 00:35:01]} {[%emt 00:22:18]}
20. Bc2 {[%clk 00:34:45]} {[%emt 00:14:58]} Nd5 {[%clk 00:30:59]} {[%emt
00:04:31]} 21. Qa4 {[%clk 00:22:20]} {[%emt 00:12:56]} b6 {[%clk 00:13:27]}
{[%emt 00:18:01]} 22. Ne4 {[%clk 00:22:44]} {[%emt 00:00:07]} Qc7 {[%clk
00:13:31]} {[%emt 00:00:24]} 23. Rc1 {[%clk 00:21:05]} {[%emt 00:02:09]} Be6
{[%clk 00:09:26]} {[%emt 00:04:36]} 24. Bb1 {[%clk 00:14:49]} {[%emt 00:06:46]}
Ne7 {[%clk 00:08:48]} {[%emt 00:01:07]} 25. Nc3 {[%clk 00:14:42]} {[%emt
00:00:37]} a5 {[%clk 00:07:41]} {[%emt 00:01:37]} 26. Be4 {[%clk 00:09:20]}
{[%emt 00:05:53]} Qd6 {[%clk 00:07:22]} {[%emt 00:00:47]} 27. Qc2 {[%clk
00:07:26]} {[%emt 00:02:26]} Rbc8 {[%clk 00:06:23]} {[%emt 00:01:30]} 28. Rcd1
{[%clk 00:07:32]} {[%emt 00:00:24]} Qb4 {[%clk 00:04:55]} {[%emt 00:01:56]} 29.
a3 {[%clk 00:07:28]} {[%emt 00:00:36]} Qd6 {[%clk 00:05:14]} {[%emt 00:00:10]}
30. Na4 {[%clk 00:05:37]} {[%emt 00:02:21]} Rb8 {[%clk 00:05:13]} {[%emt
00:00:31]} 31. Nc3 {[%clk 00:04:37]} {[%emt 00:01:30]} Rbc8 {[%clk 00:04:37]}
{[%emt 00:01:06]} 32. Na4 {[%clk 00:05:02]} {[%emt 00:00:05]} Rb8 {[%clk
00:05:00]} {[%emt 00:00:07]} 33. Nc3 {[%clk 00:05:24]} {[%emt 00:00:08]} Qf4
{[%clk 00:03:25]} {[%emt 00:02:04]} 34. Ne2 {[%clk 00:05:10]} {[%emt 00:00:45]}
Qf6 {[%clk 00:03:32]} {[%emt 00:00:22]} 35. b4 {[%clk 00:04:16]} {[%emt
00:01:25]} axb4 {[%clk 00:02:40]} {[%emt 00:01:22]} 36. axb4 {[%clk 00:04:41]}
{[%emt 00:00:05]} Bf5 {[%clk 00:02:55]} {[%emt 00:00:15]} 37. Ng3 {[%clk
00:04:25]} {[%emt 00:00:46]} Bxe4 {[%clk 00:03:14]} {[%emt 00:00:11]} 38. Nxe4
{[%clk 00:04:46]} {[%emt 00:00:10]} Qf5 {[%clk 00:03:36]} {[%emt 00:00:06]} 39.
Qe2 {[%clk 00:03:00]} {[%emt 00:02:18]} Nd5 {[%clk 00:03:13]} {[%emt 00:00:53]}
40. Qc4 {[%clk 00:02:59]} {[%emt 00:00:30]} Re8 {[%clk 00:00:35]} {[%emt
00:03:08]} 41. Ng3 {[%clk 00:01:07]} {[%emt 00:02:23]} Rxe1+ {[%clk 00:16:16]}
{[%emt 00:14:48]} 1/2-1/2